[Event "*** Titled Tuesday Blitz"]
[Site "Chess.com"]
[Date "2018.10.02"]
[Round "8"]
[White "Alopekos"]
[Black "2165149677570"]
[Result "1-0"]
[WhiteElo "2441"]
[BlackElo "2334"]
[TimeControl "180+2"]
[EndTime "14:44:40 PDT"]
[Termination "Alopekos won by resignation"]

1. e4 {[%clk 0:03:01.9]} 1... g6 {[%clk 0:02:59.4]} 2. d4 {[%clk 0:03:02.9]}
2... Nf6 {[%clk 0:02:58.2]} 3. Nc3 {[%clk 0:03:03.8]} 3... d5 {[%clk 0:02:59]}
4. exd5 {[%clk 0:01:55.6]} 4... Nxd5 {[%clk 0:03:00.9]} 5. Nxd5 {[%clk 0:01:56]}
5... Qxd5 {[%clk 0:03:01.3]} 6. Nf3 {[%clk 0:01:57.9]} 6... Bg7 {[%clk
0:03:00.2]} 7. Be2 {[%clk 0:01:56.6]} 7... O-O {[%clk 0:02:58]} 8. O-O {[%clk
0:01:57.7]} 8... Bf5 {[%clk 0:02:48.6]} 9. c4 {[%clk 0:01:57.1]} 9... Qd6 {[%clk
0:02:44.4]} 10. Be3 {[%clk 0:01:58]} 10... c6 {[%clk 0:02:44.2]} 11. Qb3 {[%clk
0:01:58.3]} 11... Qc7 {[%clk 0:02:22.9]} 12. Rfd1 {[%clk 0:01:59.1]} 12... Nd7
{[%clk 0:02:22.9]} 13. Rac1 {[%clk 0:02:00.3]} 13... Rfd8 {[%clk 0:02:19.1]} 14.
h3 {[%clk 0:01:59.9]} 14... e5 {[%clk 0:02:20.1]} 15. d5 {[%clk 0:01:36]} 15...
c5 {[%clk 0:02:16.7]} 16. g4 {[%clk 0:01:16.8]} 16... Be4 {[%clk 0:02:13.9]} 17.
Ng5 {[%clk 0:00:52.2]} 17... f5 {[%clk 0:01:59.1]} 18. f3 {[%clk 0:00:27.4]}
18... Bxf3 {[%clk 0:01:40.7]} 19. Ne6 {[%clk 0:00:19.2]} 19... Qd6 {[%clk
0:01:40.8]} 20. Bxf3 {[%clk 0:00:19.9]} 20... e4 {[%clk 0:01:37]} 21. Bg2 {[%clk
0:00:20.9]} 21... Re8 {[%clk 0:01:23.8]} 22. gxf5 {[%clk 0:00:21.2]} 22... gxf5
{[%clk 0:01:23.4]} 23. Rf1 {[%clk 0:00:22.8]} 23... Rxe6 {[%clk 0:01:17.4]} 24.
dxe6 {[%clk 0:00:22.6]} 24... Qxe6 {[%clk 0:01:19.3]} 25. Qxb7 {[%clk 0:00:24]}
25... Rf8 {[%clk 0:01:17.4]} 26. Qd5 {[%clk 0:00:25.1]} 26... Qxd5 {[%clk
0:01:12.2]} 27. cxd5 {[%clk 0:00:27]} 27... Ne5 {[%clk 0:01:08.9]} 28. Rxc5
{[%clk 0:00:22.8]} 28... Nd3 {[%clk 0:01:05.4]} 29. Rc7 {[%clk 0:00:23.6]} 29...
f4 {[%clk 0:01:05.7]} 30. Bxe4 {[%clk 0:00:23.7]} 30... fxe3 {[%clk 0:00:50.1]}
31. Rxf8+ {[%clk 0:00:22.2]} 1-0

[Event "*** Titled Tuesday Blitz"]
[Site "Chess.com"]
[Date "2018.10.02"]
[Round "8"]
[White "ChristopherYoo"]
[Black "Alex_Terzi"]
[Result "1-0"]
[WhiteElo "2370"]
[BlackElo "2454"]
[TimeControl "180+2"]
[EndTime "14:45:00 PDT"]
[Termination "ChristopherYoo won by checkmate"]

1. e4 {[%clk 0:03:01.9]} 1... e6 {[%clk 0:03:01]} 2. d4 {[%clk 0:03:01.6]} 2...
d5 {[%clk 0:03:02.1]} 3. Nc3 {[%clk 0:03:01.8]} 3... Bb4 {[%clk 0:03:02.6]} 4.
e5 {[%clk 0:03:02.7]} 4... Ne7 {[%clk 0:03:03.2]} 5. a3 {[%clk 0:03:03.5]} 5...
Bxc3+ {[%clk 0:03:04.2]} 6. bxc3 {[%clk 0:03:04.9]} 6... c5 {[%clk 0:03:06.1]}
7. Qg4 {[%clk 0:03:05]} 7... Qc7 {[%clk 0:03:07.1]} 8. Qxg7 {[%clk 0:03:05.5]}
8... Rg8 {[%clk 0:03:08.6]} 9. Qxh7 {[%clk 0:03:06.8]} 9... cxd4 {[%clk
0:03:10]} 10. Ne2 {[%clk 0:03:08.1]} 10... Nbc6 {[%clk 0:03:11.5]} 11. f4 {[%clk
0:03:08.7]} 11... dxc3 {[%clk 0:03:12.8]} 12. Qd3 {[%clk 0:03:09.6]} 12... d4
{[%clk 0:03:13.5]} 13. Nxd4 {[%clk 0:03:00.2]} 13... Nxd4 {[%clk 0:03:14]} 14.
Qxd4 {[%clk 0:03:01.7]} 14... Bd7 {[%clk 0:03:13.9]} 15. Rg1 {[%clk 0:03:02.5]}
15... Nf5 {[%clk 0:03:12.7]} 16. Qf2 {[%clk 0:03:02.2]} 16... Qc6 {[%clk
0:02:54.4]} 17. Bd3 {[%clk 0:03:01]} 17... Qd5 {[%clk 0:02:51.5]} 18. Be3 {[%clk
0:03:00.1]} 18... Bc6 {[%clk 0:02:38.4]} 19. g4 {[%clk 0:02:47.5]} 19... Ne7
{[%clk 0:02:06.9]} 20. Bc5 {[%clk 0:02:24.7]} 20... Ng6 {[%clk 0:01:53.8]} 21.
Bd6 {[%clk 0:01:49]} 21... b6 {[%clk 0:01:42]} 22. h4 {[%clk 0:01:30.6]} 22...
Ne7 {[%clk 0:01:33.1]} 23. f5 {[%clk 0:01:05.6]} 23... exf5 {[%clk 0:00:55.1]}
24. gxf5 {[%clk 0:01:05.3]} 24... Kd7 {[%clk 0:00:54.6]} 25. f6 {[%clk
0:01:01.5]} 25... Rxg1+ {[%clk 0:00:53.1]} 26. Qxg1 {[%clk 0:00:58.9]} 26... Rg8
{[%clk 0:00:53.9]} 27. Qf1 {[%clk 0:00:54.1]} 27... Qd4 {[%clk 0:00:35]} 28.
O-O-O {[%clk 0:00:48.5]} 28... Qe3+ {[%clk 0:00:24.9]} 29. Kb1 {[%clk 0:00:49]}
29... Nd5 {[%clk 0:00:25.8]} 30. Bf5+ {[%clk 0:00:44.7]} 30... Ke8 {[%clk
0:00:26.6]} 31. Qc4 {[%clk 0:00:37.7]} 31... Bb7 {[%clk 0:00:21.1]} 32. Qb5+
{[%clk 0:00:37.8]} 32... Kd8 {[%clk 0:00:18.3]} 33. Qd7# {[%clk 0:00:38.4]} 1-0

[Event "*** Titled Tuesday Blitz"]
[Site "Chess.com"]
[Date "2018.10.02"]
[Round "8"]
[White "Buffy7"]
[Black "Fins0905"]
[Result "1-0"]
[WhiteElo "2653"]
[BlackElo "2578"]
[TimeControl "180+2"]
[EndTime "14:45:04 PDT"]
[Termination "Buffy7 won by checkmate"]

1. e4 {[%clk 0:03:01.9]} 1... d5 {[%clk 0:03:00.3]} 2. exd5 {[%clk 0:03:02.9]}
2... Qxd5 {[%clk 0:03:01.2]} 3. Nc3 {[%clk 0:03:04.5]} 3... Qd8 {[%clk
0:03:02.4]} 4. Nf3 {[%clk 0:03:04.3]} 4... Nf6 {[%clk 0:03:03.6]} 5. Bc4 {[%clk
0:03:05.7]} 5... a6 {[%clk 0:03:04.3]} 6. Ne5 {[%clk 0:03:02.3]} 6... e6 {[%clk
0:03:04.9]} 7. d4 {[%clk 0:03:03.9]} 7... Nbd7 {[%clk 0:03:01]} 8. Bf4 {[%clk
0:02:59.3]} 8... Nxe5 {[%clk 0:02:50.6]} 9. Bxe5 {[%clk 0:02:52.2]} 9... Bd6
{[%clk 0:02:50]} 10. Qf3 {[%clk 0:02:47.7]} 10... Bxe5 {[%clk 0:02:42.1]} 11.
dxe5 {[%clk 0:02:48.3]} 11... Nd7 {[%clk 0:02:41]} 12. Qg3 {[%clk 0:02:46]}
12... O-O {[%clk 0:02:38.9]} 13. O-O-O {[%clk 0:02:46.7]} 13... Qe7 {[%clk
0:02:21.4]} 14. Bd3 {[%clk 0:02:19.1]} 14... b5 {[%clk 0:02:02.7]} 15. Be4
{[%clk 0:01:53.6]} 15... Rb8 {[%clk 0:02:00.9]} 16. f4 {[%clk 0:01:54.7]} 16...
b4 {[%clk 0:01:36.5]} 17. Ne2 {[%clk 0:01:51.4]} 17... Nc5 {[%clk 0:01:34]} 18.
Bf3 {[%clk 0:01:47.9]} 18... Bd7 {[%clk 0:01:24.9]} 19. Nd4 {[%clk 0:01:45.8]}
19... a5 {[%clk 0:01:22.1]} 20. Rhe1 {[%clk 0:01:38.3]} 20... a4 {[%clk
0:01:22]} 21. h4 {[%clk 0:01:39.8]} 21... Rb6 {[%clk 0:01:03.9]} 22. Qg5 {[%clk
0:01:40]} 22... Qe8 {[%clk 0:00:50.8]} 23. h5 {[%clk 0:01:41]} 23... h6 {[%clk
0:00:50.8]} 24. Qg4 {[%clk 0:01:41.9]} 24... b3 {[%clk 0:00:35.7]} 25. cxb3
{[%clk 0:01:43.2]} 25... axb3 {[%clk 0:00:37.6]} 26. a3 {[%clk 0:01:44.8]} 26...
Na4 {[%clk 0:00:39.1]} 27. Re3 {[%clk 0:01:39.2]} 27... c5 {[%clk 0:00:38.2]}
28. Be4 {[%clk 0:01:31.4]} 28... Kh8 {[%clk 0:00:31.3]} 29. Rg3 {[%clk
0:01:24.7]} 29... Rg8 {[%clk 0:00:32.1]} 30. f5 {[%clk 0:01:06]} 30... cxd4
{[%clk 0:00:25.6]} 31. f6 {[%clk 0:01:03.9]} 31... gxf6 {[%clk 0:00:15.3]} 32.
Qf4 {[%clk 0:01:04.6]} 32... Qf8 {[%clk 0:00:07.4]} 33. Qxf6+ {[%clk 0:01:00]}
33... Rg7 {[%clk 0:00:08.7]} 34. Qxh6+ {[%clk 0:00:53.8]} 34... Kg8 {[%clk
0:00:09.9]} 35. Qh7# {[%clk 0:00:54.8]} 1-0

[Event "*** Titled Tuesday Blitz"]
[Site "Chess.com"]
[Date "2018.10.02"]
[Round "8"]
[White "StoreySniper"]
[Black "aquaticpineapples"]
[Result "1-0"]
[WhiteElo "2413"]
[BlackElo "2030"]
[TimeControl "180+2"]
[EndTime "14:45:04 PDT"]
[Termination "StoreySniper won by resignation"]

1. e4 {[%clk 0:03:00.8]} 1... d5 {[%clk 0:03:00.7]} 2. exd5 {[%clk 0:03:00.9]}
2... Qxd5 {[%clk 0:03:02.6]} 3. Nc3 {[%clk 0:03:01.2]} 3... Qa5 {[%clk 0:03:04]}
4. Bc4 {[%clk 0:03:01.8]} 4... Nf6 {[%clk 0:03:05.1]} 5. d3 {[%clk 0:02:57.1]}
5... c6 {[%clk 0:03:02.4]} 6. Bd2 {[%clk 0:02:58.3]} 6... Qc7 {[%clk 0:03:01.6]}
7. Qe2 {[%clk 0:02:58]} 7... g6 {[%clk 0:02:58.3]} 8. Nf3 {[%clk 0:02:52.3]}
8... Bg7 {[%clk 0:02:58]} 9. O-O-O {[%clk 0:02:47.9]} 9... O-O {[%clk
0:02:55.6]} 10. Ne5 {[%clk 0:02:34.4]} 10... b5 {[%clk 0:02:52.4]} 11. Bb3
{[%clk 0:02:31.7]} 11... a5 {[%clk 0:02:41.6]} 12. a4 {[%clk 0:02:10.9]} 12...
bxa4 {[%clk 0:02:31.2]} 13. Nxa4 {[%clk 0:02:11.1]} 13... Na6 {[%clk 0:02:23.8]}
14. Rhe1 {[%clk 0:02:09.3]} 14... Rb8 {[%clk 0:02:13.2]} 15. Bc4 {[%clk
0:01:30.8]} 15... Nb4 {[%clk 0:02:03]} 16. Nxf7 {[%clk 0:01:29.5]} 16... Rxf7
{[%clk 0:02:00.8]} 17. Bxf7+ {[%clk 0:01:04.1]} 17... Kxf7 {[%clk 0:02:00.1]}
18. Nc5 {[%clk 0:00:45.6]} 18... Nbd5 {[%clk 0:01:35.8]} 19. c4 {[%clk
0:00:44.1]} 19... Qb6 {[%clk 0:01:26.7]} 20. Na4 {[%clk 0:00:35.5]} 20... Qb3
{[%clk 0:01:12.7]} 21. cxd5 {[%clk 0:00:35.9]} 21... Nxd5 {[%clk 0:01:10.6]} 22.
Bc3 {[%clk 0:00:21]} 22... Bxc3 {[%clk 0:01:06.8]} 23. Nxc3 {[%clk 0:00:20.3]}
23... Nxc3 {[%clk 0:01:02.3]} 24. Qxe7+ {[%clk 0:00:21.2]} 24... Kg8 {[%clk
0:01:02.6]} 25. Qd8+ {[%clk 0:00:20.4]} 25... Kg7 {[%clk 0:01:01.6]} 26. Qd4+
{[%clk 0:00:16]} 26... Kh6 {[%clk 0:00:59.8]} 27. Qh4+ {[%clk 0:00:12.8]} 27...
Kg7 {[%clk 0:01:00.1]} 28. Re7+ {[%clk 0:00:11.1]} 28... Qf7 {[%clk 0:00:48.5]}
29. Rxf7+ {[%clk 0:00:10.8]} 29... Kxf7 {[%clk 0:00:49.7]} 30. Qxh7+ {[%clk
0:00:12.3]} 30... Kf6 {[%clk 0:00:50.5]} 31. bxc3 {[%clk 0:00:13.4]} 31... Bf5
{[%clk 0:00:50.7]} 32. Re1 {[%clk 0:00:12.3]} 32... Rb7 {[%clk 0:00:43.2]} 33.
Qxb7 {[%clk 0:00:12.6]} 33... Kg5 {[%clk 0:00:44.4]} 34. Qe7+ {[%clk 0:00:13.4]}
1-0

[Event "*** Titled Tuesday Blitz"]
[Site "Chess.com"]
[Date "2018.10.02"]
[Round "8"]
[White "senecacrane"]
[Black "chenrip"]
[Result "0-1"]
[WhiteElo "2169"]
[BlackElo "2387"]
[TimeControl "180+2"]
[EndTime "14:45:04 PDT"]
[Termination "chenrip won by resignation"]

1. Nf3 {[%clk 0:03:01.9]} 1... d5 {[%clk 0:02:58]} 2. e3 {[%clk 0:03:02.6]} 2...
c5 {[%clk 0:02:58.8]} 3. d4 {[%clk 0:03:02.8]} 3... Nc6 {[%clk 0:02:57.6]} 4. c4
{[%clk 0:03:02.1]} 4... cxd4 {[%clk 0:02:56.3]} 5. exd4 {[%clk 0:03:02.8]} 5...
Nf6 {[%clk 0:02:56.6]} 6. Nc3 {[%clk 0:03:03.8]} 6... Bg4 {[%clk 0:02:55.8]} 7.
Bg5 {[%clk 0:03:04.2]} 7... Ne4 {[%clk 0:02:53.3]} 8. cxd5 {[%clk 0:02:42.3]}
8... Nxg5 {[%clk 0:02:45.3]} 9. dxc6 {[%clk 0:02:40.7]} 9... bxc6 {[%clk
0:02:44]} 10. Be2 {[%clk 0:02:38.9]} 10... Nxf3+ {[%clk 0:02:23.8]} 11. Bxf3
{[%clk 0:02:38.9]} 11... Bxf3 {[%clk 0:02:25.1]} 12. Qxf3 {[%clk 0:02:40.4]}
12... Qd7 {[%clk 0:02:22]} 13. O-O {[%clk 0:02:32.2]} 13... e6 {[%clk
0:02:21.6]} 14. Rac1 {[%clk 0:02:32]} 14... Be7 {[%clk 0:02:20.4]} 15. Ne4
{[%clk 0:02:18.7]} 15... O-O {[%clk 0:02:19.3]} 16. Nc5 {[%clk 0:02:19.4]} 16...
Qxd4 {[%clk 0:02:18.1]} 17. Qxc6 {[%clk 0:01:58.5]} 17... Rac8 {[%clk
0:02:16.3]} 18. Nxe6 {[%clk 0:01:49.1]} 18... Rxc6 {[%clk 0:01:35.1]} 19. Nxd4
{[%clk 0:01:49.2]} 19... Ra6 {[%clk 0:01:35.4]} 20. Nc6 {[%clk 0:01:16.7]} 20...
Bf6 {[%clk 0:01:32.6]} 21. b4 {[%clk 0:01:06.5]} 21... Rxa2 {[%clk 0:01:24.5]}
22. Rfd1 {[%clk 0:01:07]} 22... g6 {[%clk 0:01:24.5]} 23. Rd7 {[%clk 0:01:05.2]}
23... a6 {[%clk 0:01:22.8]} 24. Ra7 {[%clk 0:01:04.6]} 24... Kg7 {[%clk
0:01:08.2]} 25. b5 {[%clk 0:01:02.7]} 25... Rc8 {[%clk 0:01:06.2]} 26. Rxa6
{[%clk 0:01:00.8]} 26... Rb2 {[%clk 0:01:06.2]} 27. b6 {[%clk 0:00:37.1]} 27...
Rxc6 {[%clk 0:01:03.3]} 28. Rd1 {[%clk 0:00:31.7]} 28... Rcxb6 {[%clk 0:01:03]}
29. Ra7 {[%clk 0:00:33.1]} 29... Rb1 {[%clk 0:01:03.8]} 30. Rd7 {[%clk
0:00:34.2]} 30... Rxd1+ {[%clk 0:01:03.5]} 31. Rxd1 {[%clk 0:00:36.1]} 31... Rb2
{[%clk 0:01:03.2]} 32. f3 {[%clk 0:00:34.8]} 32... h5 {[%clk 0:01:03.4]} 33. h3
{[%clk 0:00:35.4]} 33... Bh4 {[%clk 0:01:03.5]} 34. Kh2 {[%clk 0:00:34.6]} 34...
Bg5 {[%clk 0:01:03.8]} 35. Rd4 {[%clk 0:00:34.4]} 35... Be3 {[%clk 0:01:01.8]}
36. Re4 {[%clk 0:00:33.9]} 36... Bf2 {[%clk 0:01:02.8]} 37. Rc4 {[%clk
0:00:30.2]} 37... h4 {[%clk 0:01:03.3]} 38. Re4 {[%clk 0:00:28.8]} 38... Bg3+
{[%clk 0:01:04.1]} 0-1

[Event "*** Titled Tuesday Blitz"]
[Site "Chess.com"]
[Date "2018.10.02"]
[Round "8"]
[White "tteshan"]
[Black "Synctel"]
[Result "0-1"]
[WhiteElo "2017"]
[BlackElo "1999"]
[TimeControl "180+2"]
[EndTime "14:45:13 PDT"]
[Termination "Synctel won by checkmate"]

1. d4 {[%clk 0:02:57.1]} 1... d5 {[%clk 0:02:55]} 2. c4 {[%clk 0:02:57.7]} 2...
c6 {[%clk 0:02:53.7]} 3. Nc3 {[%clk 0:02:58.2]} 3... Nf6 {[%clk 0:02:52.8]} 4.
e3 {[%clk 0:02:59.2]} 4... e6 {[%clk 0:02:35]} 5. Nf3 {[%clk 0:02:59.2]} 5...
Nbd7 {[%clk 0:02:34.9]} 6. Bd3 {[%clk 0:02:58]} 6... Bd6 {[%clk 0:02:33.3]} 7.
O-O {[%clk 0:02:57.7]} 7... O-O {[%clk 0:02:34.4]} 8. e4 {[%clk 0:02:57.9]} 8...
dxe4 {[%clk 0:02:33.4]} 9. Nxe4 {[%clk 0:02:58.2]} 9... Nxe4 {[%clk 0:02:34.1]}
10. Bxe4 {[%clk 0:02:58.4]} 10... e5 {[%clk 0:01:54.8]} 11. Bxh7+ {[%clk
0:02:42.1]} 11... Kxh7 {[%clk 0:01:55]} 12. Ng5+ {[%clk 0:02:43.5]} 12... Kg8
{[%clk 0:01:47.8]} 13. Qh5 {[%clk 0:02:25.3]} 13... Nf6 {[%clk 0:01:48.4]} 14.
Qh4 {[%clk 0:02:26.9]} 14... exd4 {[%clk 0:01:38.4]} 15. Nf3 {[%clk 0:02:12.2]}
15... c5 {[%clk 0:01:22.2]} 16. Bg5 {[%clk 0:02:11.1]} 16... Be7 {[%clk
0:01:22.4]} 17. Rfe1 {[%clk 0:02:08.3]} 17... Bf5 {[%clk 0:01:03.7]} 18. Re5
{[%clk 0:02:04.1]} 18... Bg6 {[%clk 0:00:59.8]} 19. Rae1 {[%clk 0:01:58.6]}
19... Bd6 {[%clk 0:00:55.5]} 20. Bxf6 {[%clk 0:01:41]} 20... Qxf6 {[%clk
0:00:53]} 21. Rg5 {[%clk 0:01:32.9]} 21... Rae8 {[%clk 0:00:44.4]} 22. Rd1
{[%clk 0:01:14.7]} 22... Re4 {[%clk 0:00:35.3]} 23. Qh3 {[%clk 0:01:11.9]} 23...
Rfe8 {[%clk 0:00:33.8]} 24. b3 {[%clk 0:00:40.1]} 24... Rf4 {[%clk 0:00:21.5]}
25. Rd5 {[%clk 0:00:38.9]} 25... Be4 {[%clk 0:00:17.7]} 26. Rh5 {[%clk
0:00:36.8]} 26... g6 {[%clk 0:00:13.2]} 27. Rh4 {[%clk 0:00:25.3]} 27... Bxf3
{[%clk 0:00:13.6]} 28. gxf3 {[%clk 0:00:24.4]} 28... Rxh4 {[%clk 0:00:12.6]} 29.
Qd7 {[%clk 0:00:24.4]} 29... Bxh2+ {[%clk 0:00:12.6]} 30. Kg2 {[%clk 0:00:24.3]}
30... Qg5+ {[%clk 0:00:12.9]} 31. Kf1 {[%clk 0:00:22.5]} 31... Qg1# {[%clk
0:00:13.4]} 0-1

[Event "*** Titled Tuesday Blitz"]
[Site "Chess.com"]
[Date "2018.10.02"]
[Round "8"]
[White "MatthewG-p4p"]
[Black "Morshynska"]
[Result "1-0"]
[WhiteElo "2647"]
[BlackElo "2086"]
[TimeControl "180+2"]
[EndTime "14:45:53 PDT"]
[Termination "MatthewG-p4p won by checkmate"]

1. Nf3 {[%clk 0:02:58.5]} 1... Nf6 {[%clk 0:03:00]} 2. c4 {[%clk 0:02:59.9]}
2... e6 {[%clk 0:02:59.8]} 3. g3 {[%clk 0:03:00.5]} 3... b6 {[%clk 0:03:00.7]}
4. Bg2 {[%clk 0:03:02]} 4... Bb7 {[%clk 0:03:01.8]} 5. O-O {[%clk 0:03:03.6]}
5... Be7 {[%clk 0:03:00.6]} 6. Re1 {[%clk 0:03:04.7]} 6... O-O {[%clk
0:02:59.7]} 7. Nc3 {[%clk 0:03:01.8]} 7... Bb4 {[%clk 0:02:59.8]} 8. Na4 {[%clk
0:02:55.9]} 8... d5 {[%clk 0:02:46.7]} 9. a3 {[%clk 0:02:56.3]} 9... Bd6 {[%clk
0:02:40.7]} 10. cxd5 {[%clk 0:02:54.9]} 10... exd5 {[%clk 0:02:42.6]} 11. b4
{[%clk 0:02:52.4]} 11... a5 {[%clk 0:02:35.4]} 12. b5 {[%clk 0:02:43.6]} 12...
Nbd7 {[%clk 0:02:30.9]} 13. d3 {[%clk 0:02:35.1]} 13... Qe7 {[%clk 0:02:25.1]}
14. Bb2 {[%clk 0:02:34.3]} 14... Rfe8 {[%clk 0:02:21.2]} 15. Nd4 {[%clk
0:02:34.1]} 15... g6 {[%clk 0:02:17.2]} 16. Rc1 {[%clk 0:02:28.4]} 16... Rac8
{[%clk 0:02:03.4]} 17. Qb3 {[%clk 0:02:12]} 17... Nc5 {[%clk 0:01:59.2]} 18.
Nxc5 {[%clk 0:02:07]} 18... Bxc5 {[%clk 0:02:01.1]} 19. Nc6 {[%clk 0:02:04.7]}
19... Bxc6 {[%clk 0:01:51.8]} 20. bxc6 {[%clk 0:02:06.6]} 20... d4 {[%clk
0:01:43]} 21. h3 {[%clk 0:02:05.5]} 21... h5 {[%clk 0:01:40]} 22. Qa4 {[%clk
0:02:02]} 22... Rcd8 {[%clk 0:01:37.8]} 23. Rc4 {[%clk 0:01:46.9]} 23... h4
{[%clk 0:01:29.4]} 24. g4 {[%clk 0:01:40.2]} 24... Qe5 {[%clk 0:01:25.5]} 25. e3
{[%clk 0:01:37.4]} 25... Qd6 {[%clk 0:01:09.2]} 26. e4 {[%clk 0:01:26]} 26... g5
{[%clk 0:00:52]} 27. Rf1 {[%clk 0:01:25.1]} 27... Nh7 {[%clk 0:00:49.5]} 28. f4
{[%clk 0:01:25.2]} 28... gxf4 {[%clk 0:00:51.4]} 29. Bc1 {[%clk 0:01:25.9]}
29... Nf8 {[%clk 0:00:43.8]} 30. Bxf4 {[%clk 0:01:23.8]} 30... Qe7 {[%clk
0:00:45]} 31. Bc1 {[%clk 0:01:14.4]} 31... Ng6 {[%clk 0:00:44.6]} 32. Qd1 {[%clk
0:01:12.6]} 32... Bxa3 {[%clk 0:00:35.8]} 33. Bh6 {[%clk 0:01:05.5]} 33... Bd6
{[%clk 0:00:31.5]} 34. Rc2 {[%clk 0:01:04.5]} 34... Qe5 {[%clk 0:00:29.9]} 35.
Rf5 {[%clk 0:01:05.2]} 35... Qh2+ {[%clk 0:00:23.4]} 36. Kf1 {[%clk 0:01:05.9]}
36... Nf4 {[%clk 0:00:19.5]} 37. Bxf4 {[%clk 0:01:01.4]} 37... Bxf4 {[%clk
0:00:21.4]} 38. Rf2 {[%clk 0:01:01.2]} 38... Be3 {[%clk 0:00:19.9]} 39. Qb3
{[%clk 0:01:01.9]} 39... Re7 {[%clk 0:00:11.8]} 40. Rxf7 {[%clk 0:01:01.6]}
40... Rxf7 {[%clk 0:00:04.7]} 41. Qxf7+ {[%clk 0:01:02.2]} 41... Kh8 {[%clk
0:00:06.6]} 42. Qf6+ {[%clk 0:00:58.3]} 42... Kh7 {[%clk 0:00:07.5]} 43. Qe7+
{[%clk 0:00:59.6]} 43... Kg6 {[%clk 0:00:06.7]} 44. Rf6+ {[%clk 0:01:00.2]}
44... Kg5 {[%clk 0:00:05.6]} 45. Qg7# {[%clk 0:00:55.4]} 1-0

[Event "*** Titled Tuesday Blitz"]
[Site "Chess.com"]
[Date "2018.10.02"]
[Round "8"]
[White "grzechu96"]
[Black "ShimanovAlex"]
[Result "1-0"]
[WhiteElo "2564"]
[BlackElo "2722"]
[TimeControl "180+2"]
[EndTime "14:45:54 PDT"]
[Termination "grzechu96 won by resignation"]

1. e4 {[%clk 0:03:01.9]} 1... c6 {[%clk 0:02:59.5]} 2. d4 {[%clk 0:03:02.6]}
2... d5 {[%clk 0:03:01.1]} 3. exd5 {[%clk 0:03:04.5]} 3... cxd5 {[%clk
0:03:02.2]} 4. Bd3 {[%clk 0:03:06.2]} 4... Nc6 {[%clk 0:03:03]} 5. c3 {[%clk
0:03:07.4]} 5... Nf6 {[%clk 0:03:04.5]} 6. Bf4 {[%clk 0:03:04.1]} 6... Bg4
{[%clk 0:03:05.5]} 7. Qb3 {[%clk 0:03:05.3]} 7... Qd7 {[%clk 0:03:06.5]} 8. Nd2
{[%clk 0:03:03.9]} 8... e6 {[%clk 0:03:07.8]} 9. Ngf3 {[%clk 0:03:05.3]} 9...
Bd6 {[%clk 0:03:06.5]} 10. Bxd6 {[%clk 0:03:02.3]} 10... Qxd6 {[%clk 0:03:08.4]}
11. O-O {[%clk 0:03:03.6]} 11... O-O {[%clk 0:03:05.5]} 12. Rae1 {[%clk
0:03:04.8]} 12... Bxf3 {[%clk 0:03:05.9]} 13. Nxf3 {[%clk 0:03:05.8]} 13... Qc7
{[%clk 0:03:06.4]} 14. Ne5 {[%clk 0:03:05.5]} 14... Nxe5 {[%clk 0:03:04.4]} 15.
Rxe5 {[%clk 0:02:56.1]} 15... Rab8 {[%clk 0:03:03.2]} 16. f4 {[%clk 0:02:57]}
16... g6 {[%clk 0:03:03.2]} 17. Qd1 {[%clk 0:02:35.9]} 17... b5 {[%clk
0:03:02.4]} 18. a3 {[%clk 0:02:35.1]} 18... a5 {[%clk 0:03:03]} 19. f5 {[%clk
0:02:22.2]} 19... exf5 {[%clk 0:02:57.2]} 20. Bxf5 {[%clk 0:02:23.6]} 20... gxf5
{[%clk 0:02:50.6]} 21. Rexf5 {[%clk 0:02:24.9]} 21... Ne4 {[%clk 0:02:51]} 22.
Qg4+ {[%clk 0:02:00.7]} 22... Kh8 {[%clk 0:02:50.6]} 23. Rxd5 {[%clk 0:02:01.6]}
23... Rbe8 {[%clk 0:02:37.1]} 24. Rxb5 {[%clk 0:01:50.2]} 24... Nd2 {[%clk
0:02:29.3]} 25. Rd1 {[%clk 0:01:39.1]} 25... f5 {[%clk 0:02:22.2]} 26. Rxf5
{[%clk 0:01:28.1]} 26... Rg8 {[%clk 0:02:17.2]} 27. Qh5 {[%clk 0:00:25.4]} 27...
Qb7 {[%clk 0:00:53.2]} 28. Rxd2 {[%clk 0:00:26.1]} 28... Re1+ {[%clk 0:00:53.9]}
29. Kf2 {[%clk 0:00:26.8]} 29... Qe4 {[%clk 0:00:50.7]} 30. Qf3 {[%clk
0:00:22.4]} 30... Qh4+ {[%clk 0:00:51.5]} 31. g3 {[%clk 0:00:16.2]} 31... Qe7
{[%clk 0:00:02.2]} 32. Rf7 {[%clk 0:00:16.1]} 32... Qe6 {[%clk 0:00:03.6]} 33.
Qf6+ {[%clk 0:00:12.3]} 33... Qxf6+ {[%clk 0:00:04.9]} 34. Rxf6 {[%clk
0:00:14.2]} 34... Rh1 {[%clk 0:00:06.3]} 35. Kg2 {[%clk 0:00:15.6]} 35... Re1
{[%clk 0:00:07.7]} 36. Rdf2 {[%clk 0:00:16.6]} 36... Rd8 {[%clk 0:00:09.6]} 37.
Rf8+ {[%clk 0:00:17.6]} 37... Rxf8 {[%clk 0:00:11.4]} 38. Rxf8+ {[%clk 0:00:19]}
38... Kg7 {[%clk 0:00:13.3]} 39. Rf2 {[%clk 0:00:20.8]} 39... Re2 {[%clk
0:00:15.2]} 1-0